bitfinex/quotes_BTCUSD_20260308
["timestamp","ask_amount","ask_price","bid_price","bid_amount"]
[1772929497711,0.07455084,67364.0,67355.0,0.01067291]
[1772929497838,0.07603084,67364.0,67355.0,0.01067291]
[1772929498272,0.07603084,67364.0,67355.0,0.08490602]
[1772929498473,0.07603084,67364.0,67353.0,0.07423524]
[1772929498918,0.07603084,67364.0,67352.0,0.07423464]
[1772929499144,0.0246602,67363.0,67351.0,0.07423723]
[1772929499353,0.0246602,67363.0,67352.0,0.07423464]
[1772929500610,0.07422582,67362.0,67351.0,0.07423723]
[1772929501036,0.07443702,67371.0,67351.0,0.07423723]
[1772929501252,0.07569701,67370.0,67355.0,0.00938532]
[1772929501580,0.00148,67369.0,67357.0,0.00938532]
[1772929501968,0.07443702,67371.0,67357.0,0.02205885]
[1772929501969,0.00022001,67371.0,67357.0,0.02205885]
[1772929502167,0.07476213,67375.0,67355.0,0.00148]
[1772929502391,0.00148,67370.0,67355.0,0.00148]
[1772929502592,0.00148,67370.0,67357.0,0.07423133]
[1772929502833,0.00148,67369.0,67359.0,0.00938532]
[1772929502952,0.00148,67370.0,67361.0,0.00938532]
[1772929506639,0.00148,67370.0,67362.0,0.07422582]
[1772929506817,0.00148,67370.0,67362.0,0.08361114]
[1772929506989,0.07569725,67370.0,67362.0,0.08361114]
[1772929509250,0.07569725,67370.0,67362.0,0.08369714]
[1772929510801,0.07569725,67370.0,67362.0,0.07431182]
[1772929510998,0.00148,67370.0,67362.0,0.07431182]
[1772929515139,0.07569712,67370.0,67362.0,0.07431182]
[1772929517049,0.00148,67370.0,67363.0,0.00988922]
[1772929517858,0.0742161,67371.0,67363.0,0.00988922]
[1772929518081,0.00148,67370.0,67363.0,0.00988922]
[1772929518506,0.00148,67369.0,67363.0,0.00988922]
[1772929519184,0.00148,67369.0,67364.0,0.07422362]
[1772929522014,0.00148,67371.0,67365.0,0.00988922]
[1772929522621,0.07476174,67375.0,67365.0,0.00988922]
[1772929522819,0.00148,67373.0,67365.0,0.00988922]
[1772929523518,0.00148,67373.0,67366.0,0.07422141]
[1772929528040,0.0756939,67373.0,67366.0,0.07422141]
[1772929530404,0.00148,67372.0,67366.0,0.07422141]
[1772929531970,0.00148,67372.0,67366.0,0.08411063]
[1772929532211,0.00148,67371.0,67366.0,0.07422141]
[1772929532384,8.9e-07,67371.0,67367.0,0.00988922]
[1772929532760,0.07476189,67375.0,67367.0,0.00988922]
[1772929532980,0.00148,67374.0,67367.0,0.00988922]
[1772929533411,0.00148,67373.0,67367.0,0.00988922]
[1772929533940,0.00148,67372.0,67367.0,0.00988922]
[1772929534306,0.07476189,67375.0,67367.0,0.00988922]
[1772929534307,0.07476189,67375.0,67368.0,0.07421921]
[1772929534512,0.00148,67372.0,67368.0,0.08410843]
[1772929535272,0.00022001,67374.0,67368.0,0.08410843]
[1772929535473,0.00148,67373.0,67368.0,0.08410843]
[1772929535882,0.00148,67375.0,67369.0,0.00988922]
[1772929536405,0.00148,67378.0,67371.0,0.00988922]
[1772929536588,0.00148,67378.0,67372.0,0.00988922]
[1772929536774,0.07442504,67381.0,67372.0,0.00988922]
[1772929536988,0.00148,67379.0,67372.0,0.00988922]
[1772929537703,0.00153341,67379.0,67372.0,0.00988922]
[1772929537913,0.00153341,67379.0,67374.0,0.00988922]
[1772929538115,5.341e-05,67379.0,67374.0,0.00988922]
[1772929538316,0.00153341,67379.0,67374.0,0.00988922]
[1772929538922,5.341e-05,67379.0,67374.0,0.00988922]
[1772929539091,0.00153341,67379.0,67374.0,0.00988922]
[1772929539951,0.07426086,67379.0,67362.0,0.07431107]
[1772929540179,0.02361336,67378.0,67363.0,0.07442434]
[1772929541372,0.02361336,67378.0,67358.0,0.07422953]
[1772929541952,0.02213336,67376.0,67357.0,0.0002]
[1772929542148,0.00010545,67373.0,67357.0,0.0002]
[1772929542367,0.02371881,67372.0,67357.0,0.0002]
[1772929543304,0.02361336,67372.0,67357.0,0.0002]
[1772929543605,0.02213336,67370.0,67357.0,0.0002]
[1772929543964,0.02213336,67368.0,67357.0,0.0002]
[1772929544848,0.02213336,67368.0,67352.0,0.0744256]
[1772929544849,0.02213336,67368.0,67350.0,0.0006]
[1772929545918,5.553e-05,67367.0,67350.0,0.0006]
[1772929546119,0.02213336,67364.0,67350.0,0.0006]
[1772929546343,5.553e-05,67361.0,67342.0,0.07424783]
[1772929546560,5.553e-05,67358.0,67344.0,0.07424526]
[1772929546704,0.00153553,67357.0,67344.0,0.07424526]
[1772929547584,0.00153553,67357.0,67345.0,0.07424439]
[1772929547723,0.00161857,67357.0,67345.0,0.07424439]
[1772929548303,0.07423243,67356.0,67342.0,0.07424783]
[1772929548498,0.07408243,67356.0,67342.0,0.07424783]
[1772929550260,0.07408243,67356.0,67346.0,0.00930966]
[1772929550454,0.07408243,67356.0,67346.0,0.08355233]
[1772929551466,0.07408243,67356.0,67346.0,0.07444267]
[1772929551615,0.07408243,67356.0,67346.0,0.0002]
[1772929551847,0.09621579,67356.0,67343.0,0.07424637]
[1772929552598,0.09621579,67356.0,67341.0,0.0001898]
[1772929554211,0.02213336,67355.0,67341.0,0.0001898]
[1772929554811,0.096368,67354.0,67341.0,0.0001898]
[1772929556118,0.07423464,67354.0,67341.0,0.0001898]
[1772929558977,0.07423464,67354.0,67341.0,0.0003898]
[1772929559114,0.096368,67354.0,67341.0,0.0003898]
[1772929563608,0.07423464,67354.0,67341.0,0.0003898]
[1772929564430,0.04406029,67351.0,67334.0,0.0002]
[1772929564619,0.00148,67350.0,67335.0,0.00874991]
[1772929565424,0.07424015,67349.0,67335.0,0.00874991]
[1772929566838,0.07424015,67349.0,67334.0,0.0002]
[1772929567075,0.02032511,67348.0,67334.0,0.0002]
[1772929567432,0.07424235,67347.0,67334.0,0.0002]
[1772929568557,0.07424235,67347.0,67341.0,0.00015]
[1772929569000,0.07424235,67347.0,67332.0,0.0002]
[1772929569001,0.02180511,67346.0,67328.0,0.000108]
[1772929569686,0.07424456,67345.0,67328.0,0.00876675]
[1772929570252,0.04406029,67340.0,67325.0,0.0004]
[1772929570613,0.0081097,67337.0,67325.0,0.0004]
[1772929571528,0.07425448,67336.0,67322.0,0.00575]
[1772929571735,0.0081097,67335.0,67322.0,0.00575]
[1772929571851,0.07425448,67336.0,67323.0,0.00808939]
[1772929572718,0.07425448,67336.0,67323.0,0.00819597]
[1772929573700,0.07879704,67336.0,67323.0,0.00819597]
[1772929575959,0.07425448,67336.0,67326.0,0.00808939]
[1772929576169,0.03088618,67336.0,67329.0,0.02052414]
[1772929576410,0.06844939,67337.0,67330.0,0.00808939]
[1772929576556,0.07425448,67336.0,67330.0,0.00808939]
[1772929577877,0.07424713,67343.0,67330.0,0.00808939]
[1772929578108,0.00148,67337.0,67330.0,0.00808939]
[1772929578791,0.07424713,67343.0,67330.0,0.00808939]
[1772929578967,0.00148,67342.0,67323.0,0.00010658]
[1772929579163,0.00479872,67338.0,67323.0,0.00010658]
[1772929579472,0.02512383,67336.0,67323.0,0.00010658]
[1772929579678,0.00148,67335.0,67323.0,0.00010658]
[1772929579910,0.02032511,67334.0,67323.0,0.00010658]
[1772929580112,0.07425779,67333.0,67323.0,0.00010658]
[1772929582421,0.07425779,67333.0,67323.0,0.00030658]
[1772929582618,0.02032511,67332.0,67323.0,1e-08]
[1772929582822,0.02499746,67331.0,67323.0,1e-08]
[1772929583756,0.02499746,67331.0,67320.0,0.0002]
[1772929583954,0.0251042,67331.0,67320.0,0.0002]
[1772929584241,0.0742611,67330.0,67320.0,0.0002]
[1772929584404,0.00148,67329.0,67320.0,0.0002]
[1772929585398,0.00148,67329.0,67324.0,0.00015]
[1772929585655,0.00148,67329.0,67320.0,0.0002]
[1772929586216,0.0742633,67328.0,67320.0,0.0002]
[1772929589311,0.00148,67332.0,67323.0,0.02052414]
[1772929589515,0.05223119,67331.0,67324.0,0.00808939]
[1772929591276,0.05223119,67331.0,67324.0,0.00828939]
[1772929594238,0.02098611,67330.0,67320.0,0.0002]
[1772929594369,0.02098611,67330.0,67320.0,0.00030674]
[1772929594806,0.0742622,67329.0,67320.0,0.00030674]
[1772929595674,0.0742622,67329.0,67318.0,0.000177]
[1772929595909,0.0742622,67329.0,67311.0,0.00808939]
[1772929596131,0.02098611,67327.0,67312.0,0.00808939]
[1772929596321,0.02246611,67326.0,67312.0,0.00808939]
[1772929596823,0.07426661,67325.0,67312.0,0.00808939]
[1772929597627,0.07426661,67325.0,67312.0,0.0823702]
[1772929598349,0.02098611,67323.0,67311.0,0.0742818]
[1772929599058,0.07426992,67322.0,67311.0,0.00794295]
[1772929599461,0.09525603,67322.0,67311.0,0.00794295]
[1772929599805,0.02098611,67321.0,67309.0,0.000177]
[1772929600013,0.00148,67320.0,67309.0,0.000177]
[1772929600635,0.02246611,67320.0,67312.0,0.0002]
[1772929600838,0.02246611,67320.0,67309.0,0.000177]
[1772929601251,0.07427323,67319.0,67310.0,0.00794295]
[1772929602673,0.00148,67318.0,67310.0,0.00794295]
[1772929603127,0.07427544,67317.0,67310.0,0.00794295]
[1772929605133,0.07427544,67317.0,67309.0,0.00811995]
[1772929607657,0.07427102,67323.0,67310.0,0.00794295]
[1772929607842,0.07575102,67323.0,67310.0,0.00942295]
[1772929608196,0.07427102,67323.0,67310.0,0.00942295]
[1772929608599,0.07427102,67323.0,67310.0,0.00962295]
[1772929608800,0.07427102,67323.0,67311.0,0.00794295]
[1772929610047,0.07427102,67323.0,67313.0,0.00794295]
[1772929611985,0.07427102,67323.0,67314.0,0.07427875]
[1772929612184,0.07427102,67323.0,67315.0,0.00794295]
[1772929612431,0.00148,67324.0,67315.0,0.00794295]
[1772929612432,0.07574806,67324.0,67315.0,0.00794295]
[1772929614196,0.07574806,67324.0,67317.0,0.00794295]
[1772929614398,0.14814419,67328.0,67317.0,0.00794295]
[1772929614706,0.07437609,67329.0,67317.0,0.00794295]
[1772929615042,0.07437609,67329.0,67317.0,0.00942295]
[1772929616248,0.07437609,67329.0,67319.0,0.00794295]
[1772929616872,0.00022001,67331.0,67319.0,0.00794295]
[1772929617125,0.00022001,67331.0,67319.0,0.00805578]
[1772929618013,0.00022001,67329.0,67319.0,0.00805578]
[1772929618175,0.00022001,67329.0,67321.0,0.00794295]
[1772929620356,0.00022001,67329.0,67323.0,0.00794295]
[1772929622871,0.00022001,67329.0,67324.0,0.07426772]
[1772929623050,0.00022001,67329.0,67325.0,0.00776991]
[1772929623841,0.00148,67332.0,67325.0,0.00776991]
[1772929624073,0.07425689,67334.0,67325.0,0.00776991]
[1772929624271,0.00148,67333.0,67325.0,0.00776991]
[1772929624940,0.00148,67333.0,67327.0,0.00776991]
[1772929625168,0.07573689,67334.0,67327.0,0.00776991]
[1772929625587,0.07425689,67334.0,67327.0,0.00776991]
[1772929625753,0.02103011,67333.0,67323.0,0.07426871]
[1772929626800,0.00022001,67329.0,67323.0,0.07426871]
[1772929627660,0.00022001,67329.0,67323.0,0.08203862]
[1772929627864,0.00022001,67329.0,67323.0,0.07426871]
[1772929628068,0.00022001,67329.0,67324.0,0.00776991]
[1772929628902,0.00022001,67329.0,67324.0,0.07426674]
[1772929629127,0.00022001,67329.0,67325.0,0.00772301]
[1772929629484,0.07425783,67333.0,67325.0,0.00772301]
[1772929631842,0.07425783,67333.0,67322.0,0.03988262]
[1772929632018,0.02103011,67332.0,67322.0,0.03988262]
[1772929633396,0.02103011,67332.0,67322.0,0.04760563]
[1772929634344,0.09529004,67332.0,67322.0,0.04760563]
[1772929635554,0.02103011,67332.0,67323.0,0.00772301]
[1772929635758,0.00148,67332.0,67323.0,0.00772301]
[1772929636630,8.04e-05,67335.0,67323.0,0.00772301]
[1772929636831,0.0015604,67335.0,67323.0,0.00772301]
[1772929637079,8.04e-05,67335.0,67323.0,0.00772301]
[1772929637235,0.0015604,67335.0,67323.0,0.00772301]
[1772929637442,0.07425669,67334.0,67323.0,0.00772301]
[1772929637636,0.07425669,67334.0,67325.0,0.00772301]
[1772929640056,0.07425669,67334.0,67327.0,0.00772301]
[1772929640242,0.07433598,67335.0,67327.0,0.00772301]
[1772929642000,0.07433598,67335.0,67327.0,0.00805713]
[1772929644008,0.07433598,67335.0,67327.0,0.00033412]
[1772929644197,0.07455599,67335.0,67327.0,0.00033412]
[1772929650265,0.02844352,67339.0,67327.0,0.07459803]
[1772929650467,0.10269579,67339.0,67327.0,0.07426391]
[1772929651033,0.02051234,67338.0,67327.0,0.07426391]
[1772929651855,0.02051234,67338.0,67327.0,0.07402701]
[1772929654338,0.00022001,67335.0,67327.0,0.07402701]
[1772929654637,0.07447607,67335.0,67327.0,0.07402701]
[1772929655056,0.02035788,67334.0,67327.0,0.07402701]
[1772929655251,0.02035788,67334.0,67326.0,0.07574551]
[1772929655459,0.02035788,67334.0,67326.0,0.07426551]
[1772929655652,0.02035788,67334.0,67327.0,0.00148]
[1772929655952,0.02035788,67334.0,67326.0,0.07426551]
[1772929656151,0.02035788,67334.0,67326.0,0.07574551]
[1772929656535,0.07425779,67333.0,67326.0,0.00148]
[1772929656930,0.07425779,67333.0,67325.0,0.0002]
[1772929657132,0.07425779,67333.0,67325.0,0.00168]
[1772929658433,0.07425779,67333.0,67325.0,0.0002]
[1772929658628,0.07425779,67333.0,67325.0,0.00168]
[1772929659082,0.08240778,67335.0,67325.0,0.00168]
[1772929659274,0.0744766,67335.0,67325.0,0.00168]
[1772929662125,0.07425426,67337.0,67326.0,0.07426551]
[1772929662329,0.07425426,67337.0,67327.0,0.00147622]
[1772929662756,0.07425426,67337.0,67326.0,0.07426551]
[1772929662934,0.00783392,67336.0,67326.0,0.07426551]
[1772929663128,0.00022001,67335.0,67326.0,0.07426551]
[1772929663320,0.02035788,67334.0,67326.0,0.07426551]
[1772929663872,0.00022001,67335.0,67326.0,0.07426551]
[1772929664080,0.07439918,67341.0,67327.0,0.00732853]
[1772929664229,0.07439918,67341.0,67329.0,0.00732853]
[1772929665468,0.09618256,67341.0,67329.0,0.00732853]
[1772929667051,0.07439918,67341.0,67330.0,0.0742611]
[1772929667205,0.07439918,67341.0,67331.0,0.00148]
[1772929667206,0.09618256,67341.0,67331.0,0.00148]
[1772929669766,0.09618256,67341.0,67332.0,0.07425889]
[1772929671427,0.09640257,67341.0,67332.0,0.07425889]
[1772929672539,0.02215339,67341.0,67332.0,0.07425889]
[1772929673426,0.09640282,67341.0,67332.0,0.07425889]
[1772929673595,0.07461944,67341.0,67332.0,0.07425889]
[1772929673785,0.02178338,67337.0,67331.0,0.07573995]
[1772929674486,0.01277204,67338.0,67331.0,0.07573995]
[1772929674911,0.02178338,67337.0,67331.0,0.07573995]
[1772929675111,0.02178338,67337.0,67329.0,0.00148]
[1772929675443,0.02178338,67335.0,67329.0,0.00148]
[1772929675631,0.02178338,67335.0,67327.0,0.07446337]
[1772929675838,0.02178338,67334.0,67329.0,0.00148]
[1772929676833,0.02178338,67333.0,67329.0,0.00148]
[1772929677037,0.02165288,67333.0,67329.0,0.00148]
[1772929677252,0.01277204,67332.0,67329.0,0.00148]
[1772929677538,0.03452932,67332.0,67329.0,0.07574204]
[1772929678705,0.03452932,67332.0,67327.0,0.00168]
[1772929679095,0.03452932,67332.0,67327.0,0.0002]
[1772929679305,0.03452932,67332.0,67327.0,0.00168]
[1772929680105,0.03452932,67332.0,67327.0,0.0002]
[1772929680400,0.03452932,67332.0,67329.0,0.0002]
[1772929681097,0.01261916,67332.0,67329.0,0.0002]
[1772929681299,0.02175728,67331.0,67329.0,0.0002]
[1772929683253,0.02175728,67331.0,67327.0,0.07446389]
[1772929683469,0.02175728,67331.0,67327.0,0.07594389]
[1772929683637,0.01261916,67330.0,67327.0,0.07594389]
[1772929683810,0.01261916,67330.0,67327.0,0.07446389]
[1772929684416,0.01261916,67330.0,67327.0,0.0002]
[1772929684615,0.02171728,67329.0,67327.0,0.0002]
[1772929684864,0.01971728,67329.0,67327.0,0.0002]
[1772929686084,0.01949261,67329.0,67327.0,0.0002]
[1772929686784,0.01261916,67328.0,67327.0,0.07446441]
[1772929687784,0.01949261,67329.0,67327.0,0.07446441]
[1772929688811,0.01246629,67328.0,67327.0,0.07446441]
[1772929689889,0.01246629,67328.0,67327.0,0.0002]
[1772929691081,0.01246629,67328.0,67327.0,0.0003112]
[1772929691643,0.01246629,67328.0,67327.0,0.07457561]
[1772929694338,0.01231339,67328.0,67327.0,0.07457561]
[1772929694854,0.01231339,67328.0,67327.0,0.0003112]
[1772929695009,0.01216049,67328.0,67327.0,0.0003112]
[1772929699511,0.03343284,67328.0,67327.0,0.0003112]
[1772929703233,0.02127235,67328.0,67327.0,0.0003112]
[1772929703578,0.02149236,67330.0,67327.0,0.0003112]
[1772929706047,0.00022001,67328.0,67327.0,0.0003112]
[1772929706219,0.00022001,67328.0,67326.0,0.00148]
[1772929707211,0.00022001,67328.0,67326.0,0.07574546]
[1772929709366,0.02149236,67330.0,67326.0,0.07574546]
[1772929710061,0.00022001,67330.0,67326.0,0.07574546]
[1772929711270,0.02149236,67330.0,67326.0,0.07574546]
[1772929713022,0.07425894,67332.0,67326.0,0.07574546]
[1772929713587,0.09371022,67333.0,67326.0,0.07574546]
[1772929714610,0.09371022,67333.0,67326.0,0.07594546]
[1772929714813,0.00022001,67330.0,67326.0,0.07594546]
[1772929715012,0.07425902,67332.0,67326.0,0.07594546]
[1772929715417,0.06311845,67332.0,67326.0,0.07594546]
[1772929723379,0.05445391,67332.0,67326.0,0.07594546]
[1772929723783,0.05467392,67332.0,67326.0,0.07594546]
[1772929736872,0.00022001,67339.0,67327.0,0.0067133]
[1772929737078,0.07447128,67339.0,67327.0,0.0067133]
[1772929737714,0.00022001,67339.0,67327.0,0.0067133]
[1772929737914,0.07425227,67338.0,67327.0,0.0067133]
[1772929738514,0.00022001,67339.0,67327.0,0.0067133]
[1772929739150,0.07425227,67338.0,67329.0,0.0067133]
[1772929740619,0.07425227,67338.0,67330.0,0.00033654]
[1772929741125,0.07425227,67338.0,67331.0,0.07425999]
[1772929741328,0.07425227,67338.0,67332.0,0.00148]
[1772929741986,0.00022001,67339.0,67332.0,0.00148]
[1772929743146,0.00022001,67339.0,67333.0,0.07425779]
[1772929746238,0.01851297,67338.0,67333.0,0.07425779]
[1772929746442,0.01851297,67337.0,67333.0,0.07425779]
[1772929746849,0.00699818,67338.0,67333.0,0.07425779]
[1772929747060,0.02551115,67338.0,67333.0,0.07425779]
[1772929747277,0.07447135,67339.0,67333.0,0.07425779]
[1772929748198,0.09298432,67339.0,67334.0,0.00033652]
[1772929748581,0.07447135,67339.0,67334.0,0.00033652]
[1772929749327,0.09298432,67339.0,67334.0,0.00033652]
[1772929749530,0.07447135,67339.0,67334.0,0.00033652]
[1772929750950,0.07447135,67339.0,67333.0,0.07425779]
[1772929751931,4.81777933,67330.0,67326.0,0.07446444]
[1772929752149,4.48185463,67330.0,67329.0,0.00795593]
[1772929752341,4.47088185,67330.0,67329.0,0.08221813]
[1772929752547,4.38618322,67330.0,67329.0,0.08221813]
[1772929752747,4.30173159,67330.0,67329.0,0.08221813]
[1772929752950,4.21727996,67330.0,67329.0,0.08221813]
[1772929753113,4.13282833,67330.0,67329.0,0.08221813]
[1772929753477,3.96392507,67330.0,67329.0,0.08221813]
[1772929753681,3.882275,67330.0,67329.0,0.0757422]
[1772929753886,3.882275,67330.0,67329.0,0.08221813]
[1772929754883,3.80509112,67330.0,67329.0,0.0757422]
[1772929755069,3.80509112,67330.0,67329.0,0.08554982]
[1772929755265,1.7497988,67330.0,67329.0,0.09475809]
[1772929755469,1.65356846,67330.0,67329.0,0.08554982]
[1772929755674,1.65208847,67330.0,67329.0,0.08554982]
[1772929758484,1.65208847,67330.0,67329.0,0.01128762]
[1772929758843,1.65208847,67330.0,67329.0,0.00936585]
[1772929760809,1.65208847,67330.0,67329.0,0.08362805]
[1772929761333,1.65208847,67330.0,67329.0,0.08382805]
[1772929765508,0.95174013,67330.0,67329.0,0.08382805]
[1772929765703,0.94433521,67330.0,67329.0,0.0759422]
[1772929766036,0.93841521,67330.0,67329.0,0.08382805]
[1772929766848,0.93641521,67330.0,67329.0,0.0759422]
[1772929767075,0.93641521,67330.0,67329.0,0.08382805]
[1772929767877,0.93493028,67330.0,67329.0,0.08382805]
[1772929768254,0.93418801,67330.0,67329.0,0.08382805]
[1772929769653,0.93440802,67330.0,67329.0,0.08382805]
[1772929780556,0.93440802,67330.0,67329.0,0.00148]
[1772929780854,0.04959877,67334.0,67329.0,0.00148]
[1772929781060,0.04093378,67332.0,67329.0,0.00148]
[1772929783158,0.04093378,67332.0,67325.0,0.0002]
[1772929783358,0.04093378,67332.0,67326.0,0.00148]
[1772929783730,0.04093378,67332.0,67327.0,0.00148]
[1772929784140,0.04093378,67332.0,67325.0,0.0002]
[1772929784369,0.03945378,67332.0,67329.0,0.0002]
[1772929784540,0.03967379,67332.0,67329.0,0.0002]
[1772929784744,0.03967379,67332.0,67330.0,0.00148]
[1772929785160,0.03819379,67332.0,67329.0,0.0002]
[1772929785361,0.03819379,67332.0,67330.0,0.00148]
[1772929785806,0.03819379,67332.0,67331.0,0.00148]
[1772929786236,0.03819379,67332.0,67329.0,0.0002]
[1772929786420,0.03819379,67332.0,67331.0,0.00148]
[1772929787437,0.04093378,67330.0,67329.0,0.00148]
[1772929787619,0.05549309,67330.0,67329.0,0.00148]
[1772929787818,0.05549309,67330.0,67322.0,0.07426882]
[1772929788015,0.05549309,67330.0,67323.0,0.00148]
[1772929788393,0.05549309,67330.0,67324.0,0.00148]
[1772929788722,0.05549309,67330.0,67324.0,0.07574692]
[1772929788723,0.04093378,67330.0,67324.0,0.07574692]
[1772929789052,0.04093378,67330.0,67325.0,0.00148]
[1772929789423,0.04093378,67330.0,67326.0,0.00148]
[1772929789858,0.04093378,67330.0,67321.0,0.07427102]
[1772929790388,0.04093378,67330.0,67322.0,0.00148]
[1772929790582,0.04093378,67330.0,67321.0,0.07427102]
[1772929790747,0.04093378,67330.0,67323.0,0.00148]
[1772929791140,0.04093378,67330.0,67326.0,0.0002]
[1772929791364,0.04115379,67330.0,67326.0,0.0002]
[1772929791763,0.04115379,67330.0,67327.0,0.00148]
[1772929792182,0.04115379,67330.0,67326.0,0.0002]
[1772929792183,0.04115379,67330.0,67328.0,0.00148]
[1772929792548,0.04115379,67330.0,67326.0,0.0002]
[1772929792798,0.04115379,67330.0,67327.0,0.00148]
[1772929793326,0.04115379,67330.0,67328.0,0.00148]
[1772929795807,0.04093378,67328.0,67319.0,0.07458534]
[1772929796015,0.04093378,67328.0,67320.0,0.00148]
[1772929797278,0.0742622,67329.0,67320.0,0.00148]
[1772929798251,0.0742622,67329.0,67321.0,0.07427102]
[1772929800361,0.07448182,67330.0,67321.0,0.07427102]
[1772929800763,0.07448182,67330.0,67321.0,0.08965008]
[1772929803516,0.00022001,67330.0,67321.0,0.07427102]
[1772929803722,0.00022001,67330.0,67322.0,0.01634194]
[1772929805260,0.00022001,67330.0,67323.0,0.07426882]
[1772929805455,0.00022001,67330.0,67323.0,0.09061076]
[1772929806030,1e-08,67330.0,67324.0,0.01634194]
[1772929806235,1e-08,67332.0,67324.0,0.01634194]
[1772929807430,1e-08,67332.0,67326.0,0.01634194]
[1772929807630,1e-08,67332.0,67328.0,0.01634194]
[1772929808596,0.07432047,67337.0,67328.0,0.01634194]
[1772929810433,0.00037001,67341.0,67331.0,0.04783387]
[1772929810603,0.07436802,67345.0,67332.0,0.04783387]
[1772929810785,0.07436802,67345.0,67333.0,0.01780979]
[1772929812898,0.0001232,67345.0,67334.0,0.07425669]
[1772929813098,0.0001232,67345.0,67335.0,0.01632979]
[1772929813516,0.00034321,67345.0,67335.0,0.01632979]
[1772929817427,0.00034321,67345.0,67337.0,0.01632979]
[1772929819471,0.00034321,67345.0,67338.0,0.07425227]
[1772929819620,0.00022001,67346.0,67339.0,0.01780979]
[1772929821530,0.00022001,67346.0,67340.0,0.07425007]
[1772929821733,0.00022001,67346.0,67341.0,0.01632979]
[1772929822168,6.699e-05,67346.0,67341.0,0.01632979]
[1772929822742,7.722e-05,67346.0,67341.0,0.01632979]
[1772929824170,7.722e-05,67346.0,67342.0,0.07424786]
[1772929824368,7.722e-05,67346.0,67343.0,0.01632979]
[1772929825317,0.00013398,67347.0,67343.0,0.01632979]
[1772929826711,0.00013398,67347.0,67345.0,0.01632979]
[1772929826913,0.00013398,67347.0,67346.0,0.00148]
[1772929828859,0.00013398,67347.0,67346.0,0.09205324]
[1772929833570,6.69e-05,67347.0,67346.0,0.09205324]
[1772929835149,7e-08,67348.0,67346.0,0.09205324]
[1772929839004,7e-08,67348.0,67346.0,0.07572345]
[1772929839299,7e-08,67348.0,67347.0,0.01520069]
[1772929839502,7e-08,67348.0,67346.0,0.07572345]
[1772929840608,7e-08,67348.0,67347.0,0.00148]
[1772929857593,4.125e-05,67346.0,67337.0,0.00148]
[1772929857725,4.125e-05,67342.0,67338.0,0.00148]
[1772929857928,0.04117712,67341.0,67338.0,0.00148]
[1772929858356,0.01551167,67340.0,67333.0,0.07425688]
[1772929858532,0.05668879,67340.0,67338.0,0.00148]
[1772929859330,0.05668879,67340.0,67333.0,0.07425688]
[1772929859539,0.04117712,67343.0,67338.0,0.00148]
[1772929859748,0.04117712,67341.0,67338.0,0.00148]
[1772929859957,0.04117712,67341.0,67337.0,0.07425252]
[1772929859958,0.00623412,67340.0,67336.0,0.00148]
[1772929860205,0.04741124,67339.0,67332.0,0.07445879]
[1772929860422,0.04741124,67339.0,67333.0,0.00148]
[1772929860623,0.04741124,67339.0,67334.0,0.00148]
[1772929861098,0.04741124,67339.0,67332.0,0.0744582]
[1772929861286,0.04741124,67339.0,67335.0,0.00148]
[1772929861693,0.12166306,67339.0,67335.0,0.00148]
[1772929861890,0.11542894,67339.0,67335.0,0.00148]
[1772929862091,0.11542894,67339.0,67332.0,0.0002]
[1772929862293,0.11542894,67339.0,67335.0,0.00148]
[1772929862493,0.11542894,67339.0,67332.0,0.0002]
[1772929862668,0.08060204,67339.0,67333.0,0.00148]
[1772929862868,0.04371327,67336.0,67328.0,0.0001232]
[1772929863071,0.04371327,67336.0,67329.0,0.00148]
[1772929863421,0.07425182,67339.0,67327.0,0.07426437]
[1772929863422,0.05000511,67335.0,67332.0,0.0002]
[1772929865255,0.12438002,67334.0,67332.0,0.0002]
[1772929865830,0.12438002,67334.0,67324.0,0.07441715]
[1772929865831,0.04371327,67333.0,67324.0,0.07441715]
[1772929866008,0.04371327,67331.0,67324.0,0.07441715]
[1772929866227,0.04371327,67331.0,67325.0,0.00148]
[1772929866714,0.00656223,67333.0,67325.0,0.00148]
[1772929867265,0.08125615,67332.0,67325.0,0.00148]
[1772929867518,0.00699667,67331.0,67326.0,0.00148]
[1772929867708,0.00699667,67330.0,67326.0,0.00148]
[1772929868650,0.00699667,67330.0,67322.0,0.07459311]
[1772929868851,0.00699667,67330.0,67326.0,0.00148]
[1772929869649,0.0742622,67329.0,67326.0,0.00148]
[1772929870936,0.0742622,67329.0,67322.0,0.07459311]
[1772929871148,0.0742622,67329.0,67326.0,0.00148]
[1772929871495,0.0742622,67329.0,67322.0,0.07459311]
[1772929871671,0.0742622,67329.0,67326.0,0.00148]
[1772929873489,0.0742622,67329.0,67322.0,0.07459311]
[1772929873642,0.0742622,67329.0,67326.0,0.00148]
[1772929874053,0.0742622,67329.0,67325.0,0.00148]
[1772929874254,0.0742622,67329.0,67318.0,0.0002]
[1772929874255,0.0080982,67328.0,67318.0,0.0002]
[1772929874472,0.0080982,67328.0,67320.0,0.00148]
[1772929874809,0.0080982,67328.0,67321.0,0.00148]
[1772929874953,0.0080982,67328.0,67318.0,0.0002]
[1772929875335,0.0080982,67328.0,67320.0,0.00148]
[1772929875754,0.0080982,67328.0,67321.0,0.00148]
[1772929876169,0.08260348,67327.0,67322.0,0.00148]
[1772929876380,0.08260348,67327.0,67326.0,0.0002]
[1772929876985,0.01614487,67327.0,67326.0,0.0002]
[1772929877183,0.07425928,67332.0,67327.0,0.01590409]
[1772929877413,0.0742587,67333.0,67327.0,0.01590409]
[1772929878020,0.0742587,67333.0,67328.0,0.00148]
[1772929883931,0.0742587,67333.0,67328.0,0.00168]
[1772929886454,0.0742587,67333.0,67328.0,0.00148]
[1772929886670,0.07998127,67333.0,67328.0,0.00148]
[1772929886844,0.00572257,67332.0,67328.0,0.00148]
[1772929887439,0.0742587,67333.0,67328.0,0.00148]
[1772929887644,0.00581403,67332.0,67321.0,0.00168]
[1772929887843,0.01581403,67332.0,67321.0,0.07595046]
[1772929888046,0.01581403,67332.0,67321.0,0.00168]
[1772929888769,0.01,67332.0,67321.0,0.00168]
[1772929891097,0.07425999,67331.0,67321.0,0.00168]
[1772929894546,0.07425999,67331.0,67321.0,0.0002]
[1772929894748,0.00643374,67327.0,67320.0,0.00148]
[1772929894897,0.00643374,67327.0,67314.0,0.0002]
[1772929895097,0.00643374,67327.0,67318.0,0.00148]
[1772929895277,0.00643374,67327.0,67314.0,0.07447865]
[1772929895485,0.00643374,67327.0,67316.0,0.00148]
[1772929895689,0.00643374,67327.0,67314.0,0.07447865]
[1772929895887,0.00643374,67327.0,67316.0,0.00148]
[1772929896088,0.03855814,67327.0,67314.0,0.0002]
[1772929896360,0.00659866,67326.0,67317.0,0.00148]
[1772929896503,0.07426661,67325.0,67318.0,0.00148]
[1772929896697,0.08086527,67325.0,67318.0,0.00148]
[1772929896891,0.08086527,67325.0,67314.0,0.0002]